fUST/lending_fUST_20251212
["ID","MTS","AMOUNT","RATE_DAILY","PERIOD"]
[398300342,1765506649068,-500.0,0.00013699,2]
[398300343,1765506649078,-500.0,0.00013699,2]
[398300344,1765506649087,-500.0,0.00013699,2]
[398300345,1765506649096,-500.0,0.00013699,2]
[398300346,1765506649106,-500.0,0.00013699,2]
[398300347,1765506649115,-500.0,0.00013699,2]
[398300348,1765506649125,-500.0,0.00013699,2]
[398300349,1765506649134,-438.156872,0.00013699,2]
[398300350,1765506649143,-500.0,0.00013699,2]
[398300351,1765506649153,-500.0,0.00013699,2]
[398300352,1765506649163,-522.62090547,0.00013699,2]
[398300353,1765506649172,-500.0,0.00013699,2]
[398300354,1765506649182,-500.0,0.00013699,2]
[398300355,1765506649191,-500.0,0.00013699,2]
[398300356,1765506649201,-500.0,0.00013699,2]
[398300357,1765506649210,-500.0,0.00013699,2]
[398300358,1765506649220,-500.0,0.00013699,2]
[398300359,1765506649229,-500.0,0.00013699,2]
[398300360,1765506649239,-500.0,0.00013699,2]
[398300361,1765506649248,-500.0,0.00013699,2]
[398300362,1765506649257,-165.82130261,0.00013699,2]
[398300363,1765506649267,-500.0,0.00013699,2]
[398300364,1765506649276,-500.0,0.00013699,2]
[398300365,1765506649286,-500.0,0.00013699,2]
[398300366,1765506649295,-500.0,0.00013699,2]
[398300367,1765506649304,-500.0,0.00013699,2]
[398300368,1765506649314,-500.0,0.00013699,2]
[398300369,1765506649324,-500.0,0.00013699,2]
[398300370,1765506649333,-500.0,0.00013699,2]
[398300371,1765506649343,-500.0,0.00013699,2]
[398300372,1765506649352,-500.0,0.00013699,2]
[398300373,1765506649364,-500.0,0.00013699,2]
[398300374,1765506649374,-500.0,0.00013699,2]
[398300375,1765506649384,-500.0,0.00013699,2]
[398300376,1765506649394,-500.0,0.00013699,2]
[398300377,1765506649405,-500.0,0.00013699,2]
[398300378,1765506649415,-500.0,0.00013699,2]
[398300379,1765506649425,-629.4318268,0.00013699,2]
[398300380,1765506649434,-160.0,0.00013699,2]
[398300381,1765506649444,-208.49,0.000137,2]
[398300382,1765506649453,-800.0,0.000137,2]
[398300383,1765506649462,-800.0,0.00013709,2]
[398300384,1765506649472,-800.0,0.0001371,2]
[398300385,1765506649481,-800.0,0.00013724,2]
[398300386,1765506649490,-5744.0,0.00013734,2]
[398300387,1765506649499,-800.0,0.00013736,2]
[398300388,1765506649509,-800.0,0.00013739,2]
[398300389,1765506649519,-800.0,0.00013746,2]
[398300390,1765506649528,-800.0,0.00013747,2]
[398300391,1765506649538,-5744.0,0.00013747,2]
[398300392,1765506649547,-537.65043338,0.00013748,2]
[398300393,1765506649557,-800.0,0.00013753,2]
[398300394,1765506649566,-422.0,0.00013754,2]
[398300395,1765506649575,-800.0,0.00013765,2]
[398300396,1765506649585,-800.0,0.00013769,2]
[398300397,1765506649594,-316.33215862,0.00013773,2]
[398300398,1765506649603,-800.0,0.00013773,2]
[398300399,1765506649612,-800.0,0.00013774,2]
[398300400,1765506649621,-800.0,0.00013777,2]
[398300401,1765506649630,-800.0,0.00013782,2]
[398300402,1765506649641,-800.0,0.00013785,2]
[398300403,1765506649650,-800.0,0.00013787,2]
[398300404,1765506649660,-800.0,0.00013791,2]
[398300405,1765506649669,-5744.0,0.00013794,2]
[398300406,1765506649678,-800.0,0.00013795,2]
[398300407,1765506649687,-800.0,0.00013797,2]
[398300408,1765506649697,-800.0,0.00013802,2]
[398300409,1765506649706,-800.0,0.00013804,2]
[398300410,1765506649716,-800.0,0.0001381,2]
[398300411,1765506649725,-698.84477529,0.00013818,2]
[398300412,1765506649735,-200.0,0.0001382,2]
[398300413,1765506649744,-200.0,0.0001382,2]
[398300414,1765506649753,-500.0,0.0001382,2]
[398300415,1765506649763,-583.70230491,0.00013821,2]
[398300416,1765506649772,-1000.0,0.00013821,2]
[398300417,1765506649782,-1000.0,0.00013821,2]
[398300418,1765506649791,-1000.0,0.00013821,2]
[398300419,1765506649805,-1000.0,0.00013821,2]
[398300420,1765506649815,-1000.0,0.00013821,2]
[398300421,1765506649825,-1000.0,0.00013821,2]
[398300422,1765506649834,-1000.0,0.00013821,2]
[398300423,1765506649843,-1000.0,0.00013821,2]
[398300424,1765506649853,-1000.0,0.00013821,2]
[398300425,1765506649863,-1000.0,0.00013821,2]
[398300426,1765506649872,-1000.0,0.00013821,2]
[398300427,1765506649881,-1000.0,0.00013821,2]
[398300428,1765506649891,-665.70378964,0.00013821,2]
[398300429,1765506649903,-1000.0,0.00013821,2]
[398300430,1765506649919,-1000.0,0.00013821,2]
[398300431,1765506649935,-1000.0,0.00013821,2]
[398300432,1765506649948,-1000.0,0.00013821,2]
[398300433,1765506649972,-1000.0,0.00013821,2]
[398300434,1765506649995,-1000.0,0.00013821,2]
[398300435,1765506650009,-1010.12838982,0.00013821,2]
[398300436,1765506650023,-1000.0,0.00013821,2]
[398300437,1765506650037,-1000.0,0.00013821,2]
[398300438,1765506650053,-673.8841353,0.00013821,2]
[398300439,1765506650067,-1000.0,0.00013821,2]
[398300440,1765506650080,-1000.0,0.00013821,2]
[398300441,1765506650092,-1000.0,0.00013821,2]
[398300442,1765506650104,-1000.0,0.00013821,2]
[398300443,1765506650119,-1017.41328214,0.00013821,2]
[398300444,1765506650131,-1000.0,0.00013821,2]
[398300445,1765506650142,-1000.0,0.00013821,2]
[398300446,1765506650155,-1000.0,0.00013821,2]
[398300447,1765506650167,-1000.0,0.00013821,2]
[398300448,1765506650181,-1000.0,0.00013821,2]
[398300449,1765506650195,-1000.0,0.00013821,2]
[398300450,1765506650209,-1000.0,0.00013821,2]
[398300451,1765506650224,-1000.0,0.00013821,2]
[398300452,1765506650239,-1000.0,0.00013821,2]
[398300453,1765506650249,-967.45120376,0.00013821,2]
[398300454,1765506650260,-1000.0,0.00013821,2]
[398300455,1765506650271,-1000.0,0.00013821,2]
[398300456,1765506650285,-1000.0,0.00013821,2]
[398300457,1765506650300,-1000.0,0.00013821,2]
[398300458,1765506650310,-1000.0,0.00013821,2]
[398300459,1765506650322,-1000.0,0.00013821,2]
[398300460,1765506650335,-1000.0,0.00013821,2]
[398300461,1765506650347,-1000.0,0.00013821,2]
[398300462,1765506650359,-800.0,0.00013842,2]
[398300463,1765506650369,-334.0,0.00013849,2]
[398300464,1765506650382,-800.0,0.0001385,2]
[398300465,1765506650394,-800.0,0.00013853,2]
[398300466,1765506650407,-5744.0,0.00013853,2]
[398300467,1765506650421,-800.0,0.00013854,2]
[398300468,1765506650433,-800.0,0.00013877,2]
[398300469,1765506650447,-800.0,0.0001388,2]
[398300470,1765506650459,-640.24385345,0.00013886,2]
[398300471,1765506650471,-800.0,0.00013898,2]
[398300472,1765506650484,-793.0,0.00013899,2]
[398300473,1765506650496,-800.0,0.00013904,2]
[398300474,1765506650509,-800.0,0.00013912,2]
[398300475,1765506650521,-800.0,0.00013917,2]
[398300476,1765506650533,-800.0,0.0001392,2]
[398300477,1765506650544,-379.07645606,0.0001392,2]
[398300478,1765506650556,-367.37460887,0.00013923,2]
[398300479,1765506650568,-569.39788551,0.00013931,2]
[398300480,1765506650580,-800.0,0.00013935,2]
[398300481,1765506650591,-800.0,0.00013938,2]
[398300482,1765506650603,-316.91984931,0.00013944,2]
[398300483,1765506650616,-800.0,0.00013948,2]
[398300484,1765506650628,-800.0,0.00013956,2]
[398300485,1765506650639,-800.0,0.00013968,2]
[398300486,1765506650652,-153.0,0.00013973,2]
[398300487,1765506650664,-5744.0,0.00013996,2]
[398300488,1765506650675,-500.0,0.00013998,2]
[398300489,1765506650687,-370.43666983,0.00014,2]
[398300490,1765506650699,-151.58,0.00014,2]
[398300491,1765506650711,-5744.0,0.00014012,2]
[398300492,1765506650724,-5744.0,0.00014013,2]
[398300493,1765506650740,-5744.0,0.00014025,2]
[398300494,1765506650753,-5744.0,0.0001406,2]
[398300495,1765506650764,-1012.26290757,0.00014091,2]
[398300496,1765506650777,-720.0,0.00014125,2]
[398300497,1765506650789,-1090.85301643,0.00014129,2]
[398300498,1765506650801,-174.86995189,0.00014141,8]
[398300499,1765506650813,-5744.0,0.00014167,2]
[398300500,1765506650824,-1351.6868473,0.00014185,2]
[398300501,1765506650836,-433.23023549,0.00014201,2]
[398300502,1765506650847,-419.85669585,0.00014204,2]
[398300503,1765506650859,-5744.0,0.00014206,2]
[398300504,1765506650871,-216.0,0.00014219,3]
[398300505,1765506650882,-600.0,0.00014221,2]
[398300506,1765506650894,-200.34205313,0.00014246,2]
[398300507,1765506650906,-200.0,0.00014246,2]
[398300508,1765506650918,-1000.0,0.00014247,2]
[398300509,1765506650930,-1000.0,0.00014247,2]
[398300510,1765506650942,-1000.0,0.00014247,2]
[398300511,1765506650958,-1000.0,0.00014247,2]
[398300512,1765506650969,-1000.0,0.00014247,2]
[398300513,1765506650981,-430.97935806,0.00014247,2]
[398300514,1765506650994,-1000.0,0.00014247,2]
[398300515,1765506651005,-865.36799733,0.00014247,2]
[398300516,1765506651017,-1000.0,0.00014247,2]
[398300517,1765506651030,-1019.50287608,0.00014247,2]
[398300518,1765506651041,-408.59095777,0.00014247,2]
[398300519,1765506651053,-1000.0,0.00014247,2]
[398300520,1765506651065,-186.06274263,0.00014247,2]
[398300521,1765506651077,-1000.0,0.00014247,2]
[398300522,1765506651089,-250.23567591,0.00014247,2]
[398300523,1765506651101,-1000.0,0.00014247,2]
[398300524,1765506651112,-185.40466464,0.00014247,2]
[398300525,1765506651128,-1000.0,0.00014247,2]
[398300526,1765506651140,-1000.0,0.00014247,2]
[398300527,1765506651152,-1000.0,0.00014247,2]
[398300528,1765506651164,-1000.0,0.00014247,2]
[398300529,1765506651176,-1000.0,0.00014247,2]
[398300530,1765506651188,-1000.0,0.00014247,2]
[398300531,1765506651201,-1000.0,0.00014247,2]
[398300532,1765506651213,-919.46302999,0.00014247,2]
[398300533,1765506651225,-562.94955736,0.00014247,2]
[398300534,1765506651237,-1000.0,0.00014247,2]
[398300535,1765506651248,-1000.0,0.00014247,2]
[398300536,1765506651260,-1000.0,0.00014247,2]
[398300537,1765506651272,-1000.0,0.00014247,2]
[398300538,1765506651284,-1000.0,0.00014247,2]
[398300539,1765506651296,-1000.0,0.00014247,2]
[398300540,1765506651309,-1000.0,0.00014247,2]
[398300541,1765506651320,-1000.0,0.00014247,2]
[398300542,1765506651333,-1000.0,0.00014247,2]
[398300543,1765506651345,-1000.0,0.00014247,2]
[398300544,1765506651357,-1000.0,0.00014247,2]
[398300545,1765506651369,-1000.0,0.00014247,2]
[398300546,1765506651380,-1000.0,0.00014247,2]
[398300547,1765506651392,-1000.0,0.00014247,2]
[398300548,1765506651404,-1000.0,0.00014247,2]
[398300549,1765506651416,-1136.11589072,0.00014247,2]
[398300550,1765506651428,-1000.0,0.00014247,2]
[398300551,1765506651440,-1000.0,0.00014247,2]
[398300552,1765506651452,-1000.0,0.00014247,2]
[398300553,1765506651464,-1000.0,0.00014247,2]
[398300554,1765506651476,-1000.0,0.00014247,2]
[398300555,1765506651487,-1000.0,0.00014247,2]
[398300556,1765506651499,-1000.0,0.00014247,2]
[398300557,1765506651510,-1000.0,0.00014247,2]
[398300558,1765506651522,-1000.0,0.00014247,2]
[398300559,1765506651534,-1000.0,0.00014247,2]
[398300560,1765506651546,-1000.0,0.00014247,2]
[398300561,1765506651557,-1000.0,0.00014247,2]
[398300562,1765506651569,-1000.0,0.00014247,2]
[398300563,1765506651580,-1000.0,0.00014247,2]
[398300564,1765506651591,-1000.0,0.00014247,2]
[398300565,1765506651603,-1000.0,0.00014247,2]
[398300566,1765506651614,-1000.0,0.00014247,2]
[398300567,1765506651625,-1000.0,0.00014247,2]
[398300568,1765506651636,-1000.0,0.00014247,2]
[398300569,1765506651647,-1000.0,0.00014247,2]
[398300570,1765506651659,-1098.4906096,0.00014247,2]
[398300571,1765506651671,-1000.0,0.00014247,2]
[398300572,1765506651682,-1000.0,0.00014247,2]
[398300573,1765506651694,-1000.0,0.00014247,2]
[398300574,1765506651705,-1000.0,0.00014247,2]
[398300575,1765506651716,-260.0,0.00014247,2]
[398300576,1765506651727,-1581.66079308,0.0001425,2]
[398300577,1765506651739,-5744.0,0.00014272,2]
[398300578,1765506651751,-418.00004174,0.00014323,2]
[398300579,1765506651762,-200.0,0.00014367,2]
[398300580,1765506651773,-1500.0,0.00014368,2]
[398300581,1765506651784,-1500.0,0.00014368,2]
[398300582,1765506651795,-1500.0,0.00014368,2]
[398300583,1765506651807,-1445.82886062,0.00014368,2]
[398300584,1765506651818,-1500.0,0.00014368,2]
[398300585,1765506651829,-1500.0,0.00014368,2]
[398300586,1765506651840,-1500.0,0.00014368,2]
[398300587,1765506651851,-1500.0,0.00014368,2]
[398300588,1765506651862,-1630.34686378,0.00014368,2]
[398300589,1765506651873,-1500.0,0.00014368,2]
[398300590,1765506651884,-1256.96557504,0.00014368,2]
[398300591,1765506653221,-267.226966,0.00012513,2]
[398300592,1765506653231,-62.927034,0.00012513,2]
[398300593,1765506653242,-204.299932,0.00012513,2]
[398300594,1765506653252,-267.226966,0.000129,2]
[398300595,1765506653262,-267.226966,0.000129,2]
[398300596,1765506653271,-267.226966,0.00013138,2]
[398300597,1765506653282,-267.226966,0.00013273,2]
[398300598,1765506653291,-267.226966,0.00013273,2]
[398300599,1765506653301,-151.0,0.00013585,2]
[398300600,1765506653310,-504.24875973,0.00013698,2]
[398300601,1765506653322,-15.07480537,0.00013698,2]
[398300602,1765506653331,-151.0,0.00014133,2]
[398300603,1765506653341,-243.03442496,0.00014368,2]
[398300604,1765506653351,-1500.0,0.00014368,2]
[398300605,1765506653361,-1500.0,0.00014368,2]
[398300606,1765506653371,-1500.0,0.00014368,2]
[398300607,1765506653382,-853.74656037,0.00014368,2]
[398300608,1765506653392,-1500.0,0.00014368,2]
[398300609,1765506653403,-1500.0,0.00014368,2]
[398300610,1765506653413,-1500.0,0.00014368,2]
[398300611,1765506653422,-1500.0,0.00014368,2]
[398300612,1765506653432,-1606.04583562,0.00014368,2]
[398300613,1765506653442,-1003.0696162,0.00014368,2]
[398300614,1765506653453,-496.9303838,0.00014368,2]
[398300615,1765506653463,-973.9916182,0.00014368,2]
[398300616,1765506653475,-526.0083818,0.00014368,2]
[398300617,1765506653485,-1500.0,0.00014368,2]
[398300618,1765506653494,-1500.0,0.00014368,2]
[398300619,1765506653503,-1500.0,0.00014368,2]
[398300620,1765506653513,-1500.0,0.00014368,2]
[398300621,1765506653524,-1500.0,0.00014368,2]
[398300622,1765506653534,-207.90684044,0.00014368,2]
[398300623,1765506653544,-1500.0,0.00014368,2]
[398300624,1765506653554,-773.08477776,0.00014368,2]
[398300625,1765506653576,-726.91522224,0.00014368,2]
[398300626,1765506653586,-1500.0,0.00014368,2]
[398300627,1765506653596,-1500.0,0.00014368,2]
[398300628,1765506653606,-1500.0,0.00014368,2]
[398300629,1765506653615,-1500.0,0.00014368,2]
[398300630,1765506653625,-1500.0,0.00014368,2]
[398300631,1765506653635,-1500.0,0.00014368,2]
[398300632,1765506653644,-1500.0,0.00014368,2]
[398300633,1765506653653,-1500.0,0.00014368,2]
[398300634,1765506653663,-1500.0,0.00014368,2]
[398300635,1765506653672,-1500.0,0.00014368,2]
[398300636,1765506653681,-1500.0,0.00014368,2]
[398300637,1765506653692,-476.26753967,0.00014375,2]
[398300638,1765506653701,-500.0,0.00014382,2]
[398300639,1765506653711,-2277.59154204,0.00014408,2]
[398300640,1765506653720,-2359.9330038,0.00014412,2]
[398300641,1765506653732,-622.40080329,0.00014412,2]
[398300642,1765506653744,-2761.66619291,0.00014412,2]
[398300643,1765506653754,-500.0,0.0001443,2]
[398300644,1765506653763,-663.93287602,0.00014434,2]
[398300645,1765506653773,-500.0,0.00014472,2]
[398300646,1765506653782,-5744.0,0.00014473,2]
[398300647,1765506653792,-676.92224296,0.00014481,2]
[398300648,1765506653802,-656.02608726,0.00014484,2]
[398300649,1765506653812,-5744.0,0.00014486,2]
[398300650,1765506653822,-5744.0,0.000145,2]
[398300651,1765506653831,-595.05262394,0.00014503,2]
[398300652,1765506653841,-301.6021027,0.0001454,2]
[398300653,1765506653850,-500.0,0.00014568,2]
[398300654,1765506653860,-174.86995189,0.00014584,10]
[398300655,1765506653869,-719.08694112,0.00014585,2]
[398300656,1765506653878,-317.5115241,0.00014592,2]
[398300657,1765506653887,-477.71433342,0.00014612,2]
[398300658,1765506653897,-475.0,0.00014618,2]
[398300659,1765506653906,-336.13875358,0.0001462,2]
[398300660,1765506653916,-151.0,0.00014681,2]
[398300661,1765506653926,-973.79326183,0.00014763,2]
[398300662,1765506653935,-943.73288809,0.00014765,2]
[398300663,1765506653946,-900.0,0.00014768,2]
[398300664,1765506653959,-475.0,0.00014793,2]
[398300665,1765506653969,-200.0,0.00014794,2]
[398300666,1765506653980,-500.0,0.00014794,2]
[398300667,1765506653991,-500.0,0.00014794,2]
[398300668,1765506654000,-500.0,0.00014794,2]
[398300669,1765506654012,-500.0,0.00014794,2]
[398300670,1765506654021,-500.0,0.00014794,2]
[398300671,1765506654035,-500.0,0.00014794,2]
[398300672,1765506654045,-500.0,0.00014794,2]
[398300673,1765506654056,-500.0,0.00014794,2]
[398300674,1765506654067,-500.0,0.00014794,2]
[398300675,1765506654078,-376.0,0.00014794,2]
[398300676,1765506654087,-500.0,0.00014794,2]
[398300677,1765506654097,-500.0,0.00014794,2]
[398300678,1765506654106,-500.0,0.00014794,2]
[398300679,1765506654116,-500.0,0.00014794,2]
[398300680,1765506654126,-500.0,0.00014794,2]
[398300681,1765506654135,-500.0,0.00014794,2]
[398300682,1765506654146,-500.0,0.00014794,2]
[398300683,1765506654155,-355.43197196,0.00014794,2]
[398300684,1765506654165,-1505.81106913,0.00014795,2]
[398300685,1765506654174,-1500.0,0.00014795,2]
[398300686,1765506654183,-1500.0,0.00014795,2]
[398300687,1765506654193,-1500.0,0.00014795,2]
[398300688,1765506654203,-674.64550659,0.00014795,2]
[398300689,1765506654212,-1500.0,0.00014795,2]
[398300690,1765506654221,-1500.0,0.00014795,2]
[398300691,1765506654230,-1500.0,0.00014795,2]
[398300692,1765506654240,-1500.0,0.00014795,2]
[398300693,1765506654250,-1500.0,0.00014795,2]
[398300694,1765506654259,-907.34619371,0.00014795,2]
[398300695,1765506654268,-1500.0,0.00014795,2]
[398300696,1765506654278,-1500.0,0.00014795,2]
[398300697,1765506654287,-1500.0,0.00014795,2]
[398300698,1765506654296,-1500.0,0.00014795,2]
[398300699,1765506654306,-1500.0,0.00014795,2]
[398300700,1765506654315,-1500.0,0.00014795,2]
[398300701,1765506654324,-1500.0,0.00014795,2]
[398300702,1765506654334,-1607.82496099,0.00014795,2]
[398300703,1765506654343,-1500.0,0.00014795,2]
[398300704,1765506654352,-1500.0,0.00014795,2]
[398300705,1765506654362,-1500.0,0.00014795,2]
[398300706,1765506654372,-1500.0,0.00014795,2]
[398300707,1765506654382,-1500.0,0.00014795,2]
[398300708,1765506654391,-1500.0,0.00014795,2]
[398300709,1765506654400,-1500.0,0.00014795,2]
[398300710,1765506654410,-281.26135547,0.00014795,2]
[398300711,1765506654419,-547.89777712,0.00014795,2]
[398300712,1765506654428,-203.89258355,0.00014795,2]
[398300713,1765506654437,-1500.0,0.00014795,2]
[398300714,1765506654447,-1500.0,0.00014795,2]
[398300715,1765506654457,-1500.0,0.00014795,2]
[398300716,1765506654466,-1500.0,0.00014795,2]
[398300717,1765506654476,-660.98454372,0.00014795,2]
[398300718,1765506654485,-1500.0,0.00014795,2]
[398300719,1765506654495,-1500.0,0.00014795,2]
[398300720,1765506654504,-1500.0,0.00014795,2]
[398300721,1765506654514,-1500.0,0.00014795,2]
[398300722,1765506654523,-1500.0,0.00014795,2]
[398300723,1765506654532,-1500.0,0.00014795,2]
[398300724,1765506654542,-1500.0,0.00014795,2]
[398300725,1765506654551,-1500.0,0.00014795,2]
[398300726,1765506654560,-915.60740923,0.00014795,2]
[398300727,1765506654569,-1500.0,0.00014795,2]
[398300728,1765506654579,-1500.0,0.00014795,2]
[398300729,1765506654589,-1500.0,0.00014795,2]
[398300730,1765506654598,-627.22466603,0.00014795,2]
[398300731,1765506654607,-1500.0,0.00014795,2]
[398300732,1765506654616,-1500.0,0.00014795,2]
[398300733,1765506654625,-1500.0,0.00014795,2]
[398300734,1765506654634,-1500.0,0.00014795,2]
[398300735,1765506654643,-1500.0,0.00014795,2]
[398300736,1765506654652,-1500.0,0.00014795,2]
[398300737,1765506654662,-1500.0,0.00014795,2]
[398300738,1765506654672,-1500.0,0.00014795,2]
[398300739,1765506654682,-1500.0,0.00014795,2]
[398300740,1765506654691,-360.0,0.00014795,2]
[398300741,1765506654700,-317.23676916,0.00014835,2]
[398300742,1765506654709,-4049.05163029,0.00014876,2]
[398300743,1765506654718,-6913.70155101,0.00014882,2]
[398300744,1765506655059,-415.0,0.00012279,2]
[398300745,1765506655068,-267.226966,0.00012513,2]
[398300746,1765506655077,-267.226966,0.000129,2]
[398300747,1765506655087,-267.226966,0.00013138,2]
[398300748,1765506655097,-267.226966,0.00013138,2]
[398300749,1765506655106,-267.226966,0.00013273,2]
[398300750,1765506655116,-267.226966,0.00013273,2]
[398300751,1765506655125,-267.226966,0.00013273,2]
[398300752,1765506655134,-267.226961,0.00013273,2]
[398300753,1765506655143,-1778.74809325,0.00014882,2]
[398300754,1765506655155,-66676.69804163,0.00014882,2]
[398300755,1765506655166,-24630.85231411,0.00014882,2]
[398300756,1765506655175,-592.76388623,0.000149,2]
[398300757,1765506655184,-452.73902025,0.000149,2]
[398300758,1765506655193,-452.73902024,0.000149,2]
[398300759,1765506655202,-452.73902024,0.000149,2]
[398300760,1765506655211,-806.19259935,0.000149,2]
[398300761,1765506655221,-746.42864597,0.00014901,2]
[398300762,1765506655231,-1053.57672964,0.00014916,2]
[398300763,1765506655240,-338.4493067,0.00014916,2]
[398300764,1765506655251,-1661.5506933,0.00014916,2]
[398300765,1765506655261,-2000.0,0.00014916,2]
[398300766,1765506655271,-385.71073035,0.00014916,2]
[398300767,1765506655281,-1384.14436607,0.00014916,2]
[398300768,1765506655290,-2000.0,0.00014916,2]
[398300769,1765506655299,-1028.76645859,0.00014916,2]
[398300770,1765506655309,-2000.0,0.00014916,2]
[398300771,1765506655319,-2000.0,0.00014916,2]
[398300772,1765506655330,-2000.0,0.00014916,2]
[398300773,1765506655341,-995.38033785,0.00014916,2]
[398300774,1765506655350,-1097.88867182,0.00014916,2]
[398300775,1765506655360,-2000.0,0.00014916,2]
[398300776,1765506655369,-2000.0,0.00014916,2]
[398300777,1765506655378,-2000.0,0.00014916,2]
[398300778,1765506655388,-1688.56513421,0.00014916,2]
[398300779,1765506655397,-2000.0,0.00014916,2]
[398300780,1765506655407,-2000.0,0.00014916,2]
[398300781,1765506655416,-1361.53927558,0.00014916,2]
[398300782,1765506655425,-2000.0,0.00014916,2]
[398300783,1765506655435,-2000.0,0.00014916,2]
[398300784,1765506655445,-2000.0,0.00014916,2]
[398300785,1765506655454,-2000.0,0.00014916,2]
[398300786,1765506655464,-2000.0,0.00014916,2]
[398300787,1765506655478,-2000.0,0.00014916,2]
[398300788,1765506655491,-2000.0,0.00014916,2]
[398300789,1765506655700,-2000.0,0.00014916,2]
[398300790,1765506655715,-1725.77792738,0.00014916,2]
[398300791,1765506656484,-302.1267499,0.00012329,2]
[398300792,1765506656494,-183.44135009,0.00014916,2]
[398300793,1765506656503,-703.06192316,0.00014916,2]
[398300794,1765506656515,-494.293216,0.00014916,2]
[398300795,1765506656534,-802.64486084,0.00014916,2]
[398300796,1765506656544,-2000.0,0.00014916,2]
[398300797,1765506656553,-2000.0,0.00014916,2]
[398300798,1765506656563,-2000.0,0.00014916,2]
[398300799,1765506656573,-2000.0,0.00014916,2]
[398300800,1765506656583,-1691.97763643,0.00014916,2]
[398300801,1765506656592,-2000.0,0.00014916,2]
[398300802,1765506656601,-2000.0,0.00014916,2]
[398300803,1765506656611,-545.48344506,0.00014925,2]
[398300804,1765506656620,-500.0,0.00014956,2]
[398300805,1765506656630,-688.49839244,0.00014982,2]
[398300806,1765506656640,-1500.0,0.00015,2]
[398300807,1765506656649,-241.0,0.00015,2]
[398300808,1765506656659,-1015.12803268,0.00015,2]
[398300809,1765506656668,-23560.8721666,0.00015,2]
[398300810,1765506656679,-804.0,0.00015,2]
[398300811,1765506656689,-415.0,0.00015,2]
[398300812,1765506656700,-174.86995189,0.00015026,13]
[398300813,1765506656718,-686.523801,0.00015068,2]
[398300814,1765506656727,-800.0,0.00015068,2]
[398300815,1765506656736,-1073.78239295,0.0001519,2]
[398300816,1765506656746,-6320.31652915,0.00015197,2]
[398300817,1765506656756,-151.0,0.00015229,2]
[398300818,1765506656765,-500.0,0.0001523,2]
[398300819,1765506656774,-415.0,0.00015279,2]
[398300820,1765506656784,-156.0,0.00015315,3]
[398300821,1765506656793,-1200.0,0.00015316,2]
[398300822,1765506656803,-460.0,0.00015342,2]
[398300823,1765506656812,-150.94975538,0.00015342,2]
[398300824,1765506656822,-2000.0,0.00015342,2]
[398300825,1765506656832,-2000.0,0.00015342,2]
[398300826,1765506656841,-2000.0,0.00015342,2]
[398300827,1765506656850,-2000.0,0.00015342,2]
[398300828,1765506656859,-2000.0,0.00015342,2]
[398300829,1765506656869,-2000.0,0.00015342,2]
[398300830,1765506656879,-2124.04561335,0.00015342,2]
[398300831,1765506656888,-2000.0,0.00015342,2]
[398300832,1765506656898,-2000.0,0.00015342,2]
[398300833,1765506656907,-2000.0,0.00015342,2]
[398300834,1765506656917,-2000.0,0.00015342,2]
[398300835,1765506656926,-456.13149364,0.00015342,2]
[398300836,1765506656936,-2000.0,0.00015342,2]
[398300837,1765506656946,-1216.9094204,0.00015342,2]
[398300838,1765506656957,-674.33017541,0.00015342,2]
[398300839,1765506656969,-830.6395,0.00015342,2]
[398300841,1765506703115,150.0,6.841e-05,2]
[398300842,1765506703512,150.0,7.166e-05,2]